[Event "Early-Titled-Tuesday-Blitz-January-30-2024"]
[Site "Chess.com"]
[Date "2024.01.30"]
[Round "5"]
[White "Rsnr"]
[Black "MKlose11"]
[Result "0-1"]
[WhiteElo "2836"]
[BlackElo "2659"]
[TimeControl "180+1"]
[EndTime "8:59:13 PST"]
[Termination "MKlose11 won by resignation"]

1. d4 {[%clk 0:03:00.9]} 1... Nf6 {[%clk 0:02:59.6]} 2. c4 {[%clk 0:03:00.3]}
2... c5 {[%clk 0:02:58.9]} 3. d5 {[%clk 0:03:00.2]} 3... b5 {[%clk 0:02:58.7]}
4. Qc2 {[%clk 0:03:00.7]} 4... bxc4 {[%clk 0:02:57.9]} 5. e4 {[%clk 0:02:59.4]}
5... d6 {[%clk 0:02:58.3]} 6. Nf3 {[%clk 0:02:59.6]} 6... g6 {[%clk 0:02:58.6]}
7. Bxc4 {[%clk 0:03:00.3]} 7... Bg7 {[%clk 0:02:59.1]} 8. O-O {[%clk 0:03:00.9]}
8... O-O {[%clk 0:02:59.4]} 9. h3 {[%clk 0:03:01.6]} 9... Ba6 {[%clk 0:02:57.8]}
10. Na3 {[%clk 0:02:59.6]} 10... Nfd7 {[%clk 0:02:55.8]} 11. Bf4 {[%clk
0:02:52.8]} 11... Nb6 {[%clk 0:02:47.5]} 12. Be2 {[%clk 0:02:52.4]} 12... Bxe2
{[%clk 0:02:45.8]} 13. Qxe2 {[%clk 0:02:53.3]} 13... N8d7 {[%clk 0:02:43.6]} 14.
Rad1 {[%clk 0:02:51.5]} 14... f6 {[%clk 0:02:34.8]} 15. Nd2 {[%clk 0:02:37.2]}
15... Rb8 {[%clk 0:02:32]} 16. b3 {[%clk 0:02:23.8]} 16... a5 {[%clk 0:02:29]}
17. Ndc4 {[%clk 0:02:17.8]} 17... a4 {[%clk 0:02:27.7]} 18. Na5 {[%clk
0:02:16.2]} 18... Ra8 {[%clk 0:02:19.4]} 19. Nc6 {[%clk 0:02:15]} 19... Qe8
{[%clk 0:02:19.8]} 20. Nb5 {[%clk 0:02:11.1]} 20... Qf7 {[%clk 0:02:07.6]} 21.
Nc7 {[%clk 0:02:10.2]} 21... Rac8 {[%clk 0:02:01.9]} 22. Ne6 {[%clk 0:02:08.2]}
22... Rfe8 {[%clk 0:02:02.2]} 23. b4 {[%clk 0:01:40.3]} 23... cxb4 {[%clk
0:01:52.7]} 24. Nxb4 {[%clk 0:01:41.2]} 24... Nc5 {[%clk 0:01:44.9]} 25. Qb5
{[%clk 0:01:41.3]} 25... Nbd7 {[%clk 0:01:43.7]} 26. Nxc5 {[%clk 0:01:12]} 26...
Nxc5 {[%clk 0:01:41.7]} 27. Rfe1 {[%clk 0:01:11.5]} 27... f5 {[%clk 0:01:30.2]}
28. e5 {[%clk 0:01:12]} 28... dxe5 {[%clk 0:01:15.6]} 29. Bxe5 {[%clk
0:01:12.9]} 29... Ne4 {[%clk 0:01:14.5]} 30. Bxg7 {[%clk 0:01:02.5]} 30... Qxg7
{[%clk 0:01:14.1]} 31. Qa6 {[%clk 0:00:36.1]} 31... Qb2 {[%clk 0:01:00.5]} 32.
Qe6+ {[%clk 0:00:35.9]} 32... Kg7 {[%clk 0:00:56.2]} 33. Nc6 {[%clk 0:00:36.2]}
33... Qxf2+ {[%clk 0:00:55.3]} 34. Kh1 {[%clk 0:00:37]} 34... Qg3 {[%clk
0:00:53.2]} 35. Kg1 {[%clk 0:00:25]} 35... Qf2+ {[%clk 0:00:38]} 36. Kh1 {[%clk
0:00:24.7]} 36... Qg3 {[%clk 0:00:37.4]} 37. Kg1 {[%clk 0:00:25.2]} 37... Nf2
{[%clk 0:00:26.5]} 38. Re3 {[%clk 0:00:05.9]} 38... Nxh3+ {[%clk 0:00:26.7]} 39.
Kh1 {[%clk 0:00:06.3]} 39... Nf2+ {[%clk 0:00:26.7]} 40. Kg1 {[%clk 0:00:06.9]}
40... Qh4 {[%clk 0:00:18.6]} 41. Qe5+ {[%clk 0:00:06.5]} 41... Kg8 {[%clk
0:00:17.2]} 42. Qe6+ {[%clk 0:00:06.3]} 42... Kf8 {[%clk 0:00:16.3]} 43. Rf1
{[%clk 0:00:06.1]} 43... Ng4 {[%clk 0:00:15.9]} 44. Rh3 {[%clk 0:00:06.5]} 44...
Qg5 {[%clk 0:00:10.8]} 45. Rxh7 {[%clk 0:00:05.3]} 45... Qe3+ {[%clk 0:00:10.9]}
46. Qxe3 {[%clk 0:00:02.4]} 46... Nxe3 {[%clk 0:00:11.8]} 47. Re1 {[%clk
0:00:02.2]} 47... Nxd5 {[%clk 0:00:11.9]} 48. Ne5 {[%clk 0:00:02.9]} 48... Kg8
{[%clk 0:00:11.4]} 49. Rh4 {[%clk 0:00:03.5]} 49... Kg7 {[%clk 0:00:11.7]} 50.
Rxa4 {[%clk 0:00:03.5]} 50... Rc2 {[%clk 0:00:07.9]} 51. Rd4 {[%clk 0:00:03.9]}
51... Nf6 {[%clk 0:00:07.8]} 52. a4 {[%clk 0:00:03.9]} 52... Ne4 {[%clk
0:00:07.6]} 53. Nf3 {[%clk 0:00:03.9]} 53... Kf6 {[%clk 0:00:07]} 54. Rb1 {[%clk
0:00:03.8]} 54... g5 {[%clk 0:00:07.2]} 55. Rb6+ {[%clk 0:00:04]} 55... e6
{[%clk 0:00:06.9]} 56. Rd7 {[%clk 0:00:04.4]} 56... g4 {[%clk 0:00:07.2]} 57.
Ne1 {[%clk 0:00:01.7]} 57... Rc1 {[%clk 0:00:07.2]} 58. Kf1 {[%clk 0:00:02.4]}
58... Rec8 {[%clk 0:00:06.2]} 59. Rbb7 {[%clk 0:00:02.7]} 59... Ra1 {[%clk
0:00:06.3]} 60. Rf7+ {[%clk 0:00:03.1]} 60... Kg5 {[%clk 0:00:06.6]} 61. Rg7+
{[%clk 0:00:03.4]} 61... Kf4 {[%clk 0:00:07.1]} 62. Rb2 {[%clk 0:00:02.6]} 62...
Rcc1 {[%clk 0:00:06.9]} 63. Re2 {[%clk 0:00:02.3]} 63... Ng3+ {[%clk 0:00:07.2]}
64. Kf2 {[%clk 0:00:02.4]} 64... Nxe2 {[%clk 0:00:08.1]} 65. Nd3+ {[%clk
0:00:03.3]} 65... Ke4 {[%clk 0:00:07.6]} 66. Nxc1 {[%clk 0:00:03.6]} 66... Nxc1
{[%clk 0:00:07.9]} 67. Re7 {[%clk 0:00:04.3]} 67... Nd3+ {[%clk 0:00:08.1]} 68.
Ke2 {[%clk 0:00:04.5]} 68... e5 {[%clk 0:00:09]} 69. Rd7 {[%clk 0:00:04.2]}
69... Ra2+ {[%clk 0:00:09.5]} 70. Kd1 {[%clk 0:00:04.5]} 70... Rxa4 {[%clk
0:00:10.4]} 71. Kd2 {[%clk 0:00:04.6]} 71... Rd4 {[%clk 0:00:10.6]} 72. Kc3
{[%clk 0:00:05.5]} 72... Rxd7 {[%clk 0:00:09.7]} 0-1

[Event "Early-Titled-Tuesday-Blitz-January-30-2024"]
[Site "Chess.com"]
[Date "2024.01.30"]
[Round "5"]
[White "DvaHrasta"]
[Black "DavidGavrilescu18"]
[Result "1-0"]
[WhiteElo "2548"]
[BlackElo "2788"]
[TimeControl "180+1"]
[EndTime "8:59:13 PST"]
[Termination "DvaHrasta won by checkmate"]

1. c4 {[%clk 0:03:00.9]} 1... e6 {[%clk 0:02:58.8]} 2. g3 {[%clk 0:03:00.6]}
2... d5 {[%clk 0:02:59.7]} 3. Bg2 {[%clk 0:03:00.9]} 3... d4 {[%clk 0:03:00.3]}
4. Nf3 {[%clk 0:03:00.5]} 4... c5 {[%clk 0:03:00.9]} 5. O-O {[%clk 0:02:59.1]}
5... Nc6 {[%clk 0:03:00.7]} 6. e3 {[%clk 0:02:59.3]} 6... Nf6 {[%clk 0:02:56.5]}
7. Re1 {[%clk 0:02:56.4]} 7... Bd6 {[%clk 0:02:50.2]} 8. a3 {[%clk 0:02:50.5]}
8... a5 {[%clk 0:02:47.4]} 9. exd4 {[%clk 0:02:50.3]} 9... cxd4 {[%clk
0:02:46.8]} 10. b3 {[%clk 0:02:50.5]} 10... O-O {[%clk 0:02:46.1]} 11. d3 {[%clk
0:02:50.5]} 11... h6 {[%clk 0:02:45.9]} 12. Qc2 {[%clk 0:02:48.6]} 12... Nd7
{[%clk 0:02:41]} 13. Bb2 {[%clk 0:02:43.2]} 13... e5 {[%clk 0:02:40.9]} 14. Nbd2
{[%clk 0:02:39.4]} 14... Nc5 {[%clk 0:02:40.8]} 15. Ne4 {[%clk 0:02:29.4]} 15...
Nxe4 {[%clk 0:02:40.2]} 16. Rxe4 {[%clk 0:02:25.4]} 16... Bf5 {[%clk 0:02:39.3]}
17. Ree1 {[%clk 0:02:21.4]} 17... Re8 {[%clk 0:02:39.9]} 18. Nd2 {[%clk
0:02:20.9]} 18... Rc8 {[%clk 0:02:39.4]} 19. Ne4 {[%clk 0:02:18.1]} 19... Bf8
{[%clk 0:02:39.6]} 20. h3 {[%clk 0:02:09.5]} 20... Bg6 {[%clk 0:02:32]} 21. g4
{[%clk 0:02:04.1]} 21... f5 {[%clk 0:02:31.8]} 22. gxf5 {[%clk 0:02:02.5]} 22...
Bxf5 {[%clk 0:02:32.7]} 23. Qd2 {[%clk 0:01:59.2]} 23... Qh4 {[%clk 0:02:30.4]}
24. Kh2 {[%clk 0:01:53.9]} 24... Rc7 {[%clk 0:02:28.7]} 25. Ng3 {[%clk
0:01:46.7]} 25... Bc8 {[%clk 0:02:26]} 26. Qe2 {[%clk 0:01:31.7]} 26... Kh8
{[%clk 0:02:20.8]} 27. Qh5 {[%clk 0:01:27.5]} 27... Qxh5 {[%clk 0:02:18.1]} 28.
Nxh5 {[%clk 0:01:27.5]} 28... Rf7 {[%clk 0:02:18.6]} 29. Kg1 {[%clk 0:01:23.8]}
29... Bf5 {[%clk 0:02:12.8]} 30. Rad1 {[%clk 0:01:22.7]} 30... g6 {[%clk
0:02:06.9]} 31. Ng3 {[%clk 0:01:22.2]} 31... h5 {[%clk 0:02:07.1]} 32. Bxc6
{[%clk 0:01:19.5]} 32... bxc6 {[%clk 0:02:07.4]} 33. Bxd4 {[%clk 0:01:19.6]}
33... Bxh3 {[%clk 0:02:00.6]} 34. Rxe5 {[%clk 0:01:13.8]} 34... Rxe5 {[%clk
0:02:00.8]} 35. Bxe5+ {[%clk 0:01:14]} 35... Kg8 {[%clk 0:02:01.7]} 36. Ne4
{[%clk 0:01:10.6]} 36... Rf5 {[%clk 0:02:00.8]} 37. f4 {[%clk 0:01:04.1]} 37...
Bxa3 {[%clk 0:01:57.8]} 38. d4 {[%clk 0:00:59.9]} 38... Bg4 {[%clk 0:01:47.5]}
39. Ra1 {[%clk 0:00:58.3]} 39... Bb4 {[%clk 0:01:47.9]} 40. Nf6+ {[%clk
0:00:56.8]} 40... Kf7 {[%clk 0:01:45.5]} 41. Nxg4 {[%clk 0:00:55.5]} 41... hxg4
{[%clk 0:01:46.4]} 42. Kg2 {[%clk 0:00:52]} 42... Rh5 {[%clk 0:01:42.2]} 43. Kg3
{[%clk 0:00:47.9]} 43... Rh3+ {[%clk 0:01:42]} 44. Kxg4 {[%clk 0:00:48]} 44...
Rxb3 {[%clk 0:01:42.6]} 45. Rh1 {[%clk 0:00:48.1]} 45... a4 {[%clk 0:01:41.5]}
46. Rh7+ {[%clk 0:00:48]} 46... Ke8 {[%clk 0:01:41.9]} 47. Ra7 {[%clk
0:00:41.6]} 47... a3 {[%clk 0:01:41.5]} 48. Kg5 {[%clk 0:00:41.9]} 48... Be7+
{[%clk 0:01:24.5]} 49. Kxg6 {[%clk 0:00:42.1]} 49... Rb2 {[%clk 0:01:25.1]} 50.
d5 {[%clk 0:00:39.8]} 50... Rg2+ {[%clk 0:01:24.9]} 51. Kf5 {[%clk 0:00:39.5]}
51... cxd5 {[%clk 0:01:24.8]} 52. cxd5 {[%clk 0:00:39.1]} 52... Bc5 {[%clk
0:01:24.6]} 53. Ra5 {[%clk 0:00:30.5]} 53... Bb4 {[%clk 0:01:16.7]} 54. Ra4
{[%clk 0:00:30.3]} 54... Bc5 {[%clk 0:01:15.9]} 55. Ke6 {[%clk 0:00:28.6]} 55...
Be7 {[%clk 0:01:01.7]} 56. Ra8+ {[%clk 0:00:26.3]} 56... Bd8 {[%clk 0:01:02.2]}
57. d6 {[%clk 0:00:25]} 57... Rg6+ {[%clk 0:01:00.8]} 58. Kd5 {[%clk 0:00:23.7]}
58... Kd7 {[%clk 0:00:59.5]} 59. Ra7+ {[%clk 0:00:23]} 59... Ke8 {[%clk
0:00:58]} 60. Rxa3 {[%clk 0:00:23.1]} 60... Rg1 {[%clk 0:00:55.5]} 61. Ra8
{[%clk 0:00:22.7]} 61... Kd7 {[%clk 0:00:55.3]} 62. Ra7+ {[%clk 0:00:23]} 62...
Ke8 {[%clk 0:00:55.7]} 63. f5 {[%clk 0:00:21.8]} 63... Rh1 {[%clk 0:00:53]} 64.
Ra8 {[%clk 0:00:19]} 64... Kd7 {[%clk 0:00:50.7]} 65. Ra7+ {[%clk 0:00:18.4]}
65... Ke8 {[%clk 0:00:51.3]} 66. Ke6 {[%clk 0:00:18.6]} 66... Rh6+ {[%clk
0:00:50.7]} 67. f6 {[%clk 0:00:18.8]} 67... Kf8 {[%clk 0:00:35.9]} 68. Ra8
{[%clk 0:00:17.3]} 68... Kg8 {[%clk 0:00:36.3]} 69. Rxd8+ {[%clk 0:00:16.6]}
69... Kh7 {[%clk 0:00:37.2]} 70. d7 {[%clk 0:00:16.8]} 70... Rg6 {[%clk
0:00:30.8]} 71. Re8 {[%clk 0:00:15.2]} 71... Kh6 {[%clk 0:00:25.1]} 72. d8=Q
{[%clk 0:00:14.4]} 72... Kg5 {[%clk 0:00:26]} 73. Qd3 {[%clk 0:00:11.1]} 73...
Kh5 {[%clk 0:00:24]} 74. Qh3+ {[%clk 0:00:10.4]} 74... Kg5 {[%clk 0:00:24.3]}
75. Qg3+ {[%clk 0:00:10.6]} 75... Kh5 {[%clk 0:00:24.3]} 76. Rh8+ {[%clk
0:00:09.9]} 76... Rh6 {[%clk 0:00:24.9]} 77. Qh3+ {[%clk 0:00:09.9]} 77... Kg5
{[%clk 0:00:25.8]} 78. Qxh6+ {[%clk 0:00:10]} 78... Kg4 {[%clk 0:00:26.7]} 79.
Qg6+ {[%clk 0:00:09.6]} 79... Kf3 {[%clk 0:00:27.6]} 80. Rh3+ {[%clk 0:00:09.2]}
80... Ke2 {[%clk 0:00:28.5]} 81. Qg2+ {[%clk 0:00:09.2]} 81... Kd1 {[%clk
0:00:29.4]} 82. Rh1# {[%clk 0:00:09.4]} 1-0

[Event "Early-Titled-Tuesday-Blitz-January-30-2024"]
[Site "Chess.com"]
[Date "2024.01.30"]
[Round "5"]
[White "Polish_fighter3000"]
[Black "VitaliyBernadskiy"]
[Result "1-0"]
[WhiteElo "3063"]
[BlackElo "2915"]
[TimeControl "180+1"]
[EndTime "8:59:17 PST"]
[Termination "Polish_fighter3000 won by resignation"]

1. e4 {[%clk 0:03:00.9]} 1... c6 {[%clk 0:03:00]} 2. d4 {[%clk 0:03:00]} 2... d5
{[%clk 0:03:00.9]} 3. e5 {[%clk 0:03:00.1]} 3... Bf5 {[%clk 0:03:00.4]} 4. Nd2
{[%clk 0:02:58.5]} 4... e6 {[%clk 0:03:00.3]} 5. Nb3 {[%clk 0:02:59.1]} 5... Bg6
{[%clk 0:02:56.5]} 6. Be2 {[%clk 0:02:54.4]} 6... Nd7 {[%clk 0:02:53.2]} 7. Nf3
{[%clk 0:02:40.4]} 7... Ne7 {[%clk 0:02:50.1]} 8. O-O {[%clk 0:02:39]} 8... Nf5
{[%clk 0:02:48.9]} 9. a4 {[%clk 0:02:29.1]} 9... Rc8 {[%clk 0:02:48.2]} 10. c3
{[%clk 0:02:20.5]} 10... h5 {[%clk 0:02:41.6]} 11. a5 {[%clk 0:02:02.1]} 11...
a6 {[%clk 0:02:40.4]} 12. Bd2 {[%clk 0:01:47.9]} 12... c5 {[%clk 0:02:36.9]} 13.
Nc1 {[%clk 0:01:46.2]} 13... h4 {[%clk 0:02:28.1]} 14. Nd3 {[%clk 0:01:38.7]}
14... Bh5 {[%clk 0:02:28.2]} 15. Ra4 {[%clk 0:01:37.5]} 15... Bxf3 {[%clk
0:02:11]} 16. Bxf3 {[%clk 0:01:37.4]} 16... cxd4 {[%clk 0:02:11.6]} 17. cxd4
{[%clk 0:01:38.3]} 17... Nb8 {[%clk 0:02:07.1]} 18. Bg4 {[%clk 0:01:36.3]} 18...
g6 {[%clk 0:02:06.4]} 19. Qb3 {[%clk 0:01:26.6]} 19... Qd7 {[%clk 0:02:01.7]}
20. Bxf5 {[%clk 0:01:17.4]} 20... gxf5 {[%clk 0:02:01.4]} 21. Bb4 {[%clk
0:01:14.5]} 21... Qb5 {[%clk 0:02:00.4]} 22. Qa3 {[%clk 0:01:05.4]} 22... Rc4
{[%clk 0:01:52]} 23. Bxf8 {[%clk 0:01:04.4]} 23... Rxf8 {[%clk 0:01:49]} 24.
Rxc4 {[%clk 0:01:02.3]} 24... dxc4 {[%clk 0:01:48.7]} 25. Nf4 {[%clk 0:00:54.7]}
25... Nc6 {[%clk 0:01:48.4]} 26. d5 {[%clk 0:00:49.7]} 26... exd5 {[%clk
0:01:42.6]} 27. Qd6 {[%clk 0:00:49.6]} 27... Qb4 {[%clk 0:01:36.6]} 28. Qxd5
{[%clk 0:00:38.1]} 28... Qxa5 {[%clk 0:01:36.5]} 29. Qxc4 {[%clk 0:00:38.3]}
29... Qb4 {[%clk 0:01:35.7]} 30. Qc1 {[%clk 0:00:34.3]} 30... Rg8 {[%clk
0:01:31.8]} 31. Rd1 {[%clk 0:00:32.9]} 31... Qe4 {[%clk 0:01:29]} 32. Qd2 {[%clk
0:00:27.7]} 32... Rg4 {[%clk 0:01:21.9]} 33. e6 {[%clk 0:00:26.1]} 33... Kf8
{[%clk 0:01:15.9]} 34. Qd7 {[%clk 0:00:25.6]} 34... Ne5 {[%clk 0:01:05.7]} 35.
e7+ {[%clk 0:00:19.2]} 35... Kg7 {[%clk 0:01:05.5]} 36. e8=Q {[%clk 0:00:18.3]}
36... Nxd7 {[%clk 0:00:46.8]} 37. Nh5+ {[%clk 0:00:09.8]} 37... Kg6 {[%clk
0:00:46.3]} 38. Qg8+ {[%clk 0:00:09.6]} 38... Kxh5 {[%clk 0:00:45.9]} 39. Qxf7+
{[%clk 0:00:09.9]} 39... Rg6 {[%clk 0:00:40]} 40. Qh7+ {[%clk 0:00:09.3]} 40...
Rh6 {[%clk 0:00:39.2]} 41. Qxd7 {[%clk 0:00:07.6]} 41... h3 {[%clk 0:00:38.1]}
42. Qg7 {[%clk 0:00:03.7]} 42... Qxg2+ {[%clk 0:00:31.4]} 43. Qxg2 {[%clk
0:00:03.7]} 43... hxg2 {[%clk 0:00:32.3]} 44. Kxg2 {[%clk 0:00:04.3]} 44... Rb6
{[%clk 0:00:32.5]} 45. Rd2 {[%clk 0:00:04.4]} 45... Rb3 {[%clk 0:00:32.6]} 46.
f3 {[%clk 0:00:04.6]} 46... a5 {[%clk 0:00:32.7]} 47. Kg3 {[%clk 0:00:04.5]}
47... Rb4 {[%clk 0:00:31.3]} 48. Rd5 {[%clk 0:00:03.8]} 48... Kg6 {[%clk
0:00:28.5]} 49. Rxa5 {[%clk 0:00:03.1]} 49... Rxb2 {[%clk 0:00:28.8]} 50. Rd5
{[%clk 0:00:03.3]} 50... b5 {[%clk 0:00:28.9]} 51. Rd6+ {[%clk 0:00:03.3]} 51...
Kf7 {[%clk 0:00:28.3]} 52. h4 {[%clk 0:00:02.6]} 52... b4 {[%clk 0:00:28.7]} 53.
Kf4 {[%clk 0:00:02.5]} 53... Rh2 {[%clk 0:00:26.7]} 54. Kg5 {[%clk 0:00:02.7]}
54... b3 {[%clk 0:00:26.1]} 55. Rb6 {[%clk 0:00:02.5]} 55... b2 {[%clk 0:00:26]}
56. f4 {[%clk 0:00:01.8]} 56... Ke7 {[%clk 0:00:16.9]} 57. h5 {[%clk 0:00:02]}
57... Kd7 {[%clk 0:00:15.4]} 58. h6 {[%clk 0:00:01.8]} 58... Ke7 {[%clk
0:00:15.4]} 59. Kg6 {[%clk 0:00:01.8]} 59... Kf8 {[%clk 0:00:09.1]} 60. Rb8+
{[%clk 0:00:01.5]} 60... Ke7 {[%clk 0:00:09.3]} 61. h7 {[%clk 0:00:02.1]} 61...
Ke6 {[%clk 0:00:09.4]} 62. Kg7 {[%clk 0:00:01.7]} 62... Rg2+ {[%clk 0:00:09.3]}
63. Kf8 {[%clk 0:00:02]} 63... Rh2 {[%clk 0:00:09.8]} 64. Rb6+ {[%clk
0:00:02.2]} 64... Kd5 {[%clk 0:00:09.8]} 65. Kg7 {[%clk 0:00:02.8]} 65... Rg2+
{[%clk 0:00:09.1]} 66. Kf6 {[%clk 0:00:03.1]} 66... Rh2 {[%clk 0:00:09.4]} 67.
Kg6 {[%clk 0:00:03.7]} 67... Ke4 {[%clk 0:00:06.9]} 68. Rb4+ {[%clk 0:00:03.6]}
68... Kf3 {[%clk 0:00:06.5]} 69. Rxb2 {[%clk 0:00:03.6]} 69... Rxb2 {[%clk
0:00:06]} 70. h8=Q {[%clk 0:00:03.2]} 70... Kxf4 {[%clk 0:00:03.4]} 71. Qxb2
{[%clk 0:00:02.6]} 1-0

[Event "Early-Titled-Tuesday-Blitz-January-30-2024"]
[Site "Chess.com"]
[Date "2024.01.30"]
[Round "5"]
[White "cristianserban1"]
[Black "GMKrikor"]
[Result "0-1"]
[WhiteElo "2582"]
[BlackElo "2798"]
[TimeControl "180+1"]
[EndTime "8:59:17 PST"]
[Termination "GMKrikor won on time"]

1. d4 {[%clk 0:03:00.9]} 1... Nf6 {[%clk 0:02:58]} 2. c4 {[%clk 0:03:01.1]} 2...
g6 {[%clk 0:02:57.5]} 3. Nc3 {[%clk 0:03:01.2]} 3... d5 {[%clk 0:02:57.8]} 4.
cxd5 {[%clk 0:03:02.1]} 4... Nxd5 {[%clk 0:02:58.4]} 5. e4 {[%clk 0:03:02.9]}
5... Nxc3 {[%clk 0:02:58.6]} 6. bxc3 {[%clk 0:03:03.8]} 6... Bg7 {[%clk
0:02:58.8]} 7. Bc4 {[%clk 0:03:04.5]} 7... c5 {[%clk 0:02:58.9]} 8. Ne2 {[%clk
0:03:04.9]} 8... O-O {[%clk 0:02:59]} 9. O-O {[%clk 0:03:05]} 9... Nc6 {[%clk
0:02:59.4]} 10. Be3 {[%clk 0:03:05.4]} 10... Bg4 {[%clk 0:02:59.5]} 11. f3
{[%clk 0:03:05.5]} 11... Bd7 {[%clk 0:02:59]} 12. Rb1 {[%clk 0:03:04.5]} 12...
Qc7 {[%clk 0:02:57.1]} 13. dxc5 {[%clk 0:02:38.5]} 13... Rad8 {[%clk 0:02:53.6]}
14. Qc2 {[%clk 0:02:19.8]} 14... Na5 {[%clk 0:02:32.2]} 15. Bb5 {[%clk
0:02:18.7]} 15... Bxb5 {[%clk 0:02:29]} 16. Rxb5 {[%clk 0:02:19.6]} 16... Nc4
{[%clk 0:02:29.5]} 17. Qc1 {[%clk 0:02:17]} 17... Rd3 {[%clk 0:02:02.5]} 18. Bd4
{[%clk 0:02:04.9]} 18... e5 {[%clk 0:02:00.7]} 19. Bf2 {[%clk 0:02:05.1]} 19...
Rfd8 {[%clk 0:01:57.8]} 20. Rb4 {[%clk 0:00:56.7]} 20... Na5 {[%clk 0:01:34.8]}
21. Qb1 {[%clk 0:00:42.2]} 21... Rd2 {[%clk 0:01:27.3]} 22. Ng3 {[%clk
0:00:39.1]} 22... h5 {[%clk 0:01:21.2]} 23. Be3 {[%clk 0:00:37.5]} 23... R2d3
{[%clk 0:01:04.9]} 24. Re1 {[%clk 0:00:09.3]} 24... Rxc3 {[%clk 0:01:02.2]} 25.
Nf1 {[%clk 0:00:09.6]} 25... Bf8 {[%clk 0:00:51.1]} 26. Rc1 {[%clk 0:00:05.5]}
26... Rcd3 {[%clk 0:00:34]} 27. Rb2 {[%clk 0:00:03]} 27... h4 {[%clk 0:00:24.5]}
28. Rd2 {[%clk 0:00:03.3]} 28... Rxd2 {[%clk 0:00:21]} 29. Nxd2 {[%clk
0:00:04.2]} 29... Nc6 {[%clk 0:00:16.9]} 30. Nb3 {[%clk 0:00:03.8]} 30... h3
{[%clk 0:00:14.4]} 31. g3 {[%clk 0:00:03.8]} 31... Nb4 {[%clk 0:00:14.6]} 32.
Rd1 {[%clk 0:00:03.2]} 32... Nc6 {[%clk 0:00:11]} 33. Rd5 {[%clk 0:00:02.9]}
33... Ne7 {[%clk 0:00:11.2]} 34. Rxd8 {[%clk 0:00:01.7]} 34... Qxd8 {[%clk
0:00:12.1]} 35. Qc2 {[%clk 0:00:01.8]} 35... Nc6 {[%clk 0:00:12.5]} 36. Kf1
{[%clk 0:00:01.8]} 36... Qd7 {[%clk 0:00:11.5]} 37. Qd2 {[%clk 0:00:01.7]} 37...
Qe6 {[%clk 0:00:10.4]} 38. Qd3 {[%clk 0:00:01.5]} 38... Be7 {[%clk 0:00:10.9]}
39. Qd5 {[%clk 0:00:01.6]} 39... Qc8 {[%clk 0:00:11.2]} 40. Kf2 {[%clk
0:00:01.6]} 40... Nb4 {[%clk 0:00:11.8]} 41. Qc4 {[%clk 0:00:01.9]} 41... Nc6
{[%clk 0:00:12.1]} 42. Qd5 {[%clk 0:00:02.5]} 42... Kg7 {[%clk 0:00:12.1]} 43.
f4 {[%clk 0:00:02.5]} 43... Bf6 {[%clk 0:00:11.3]} 44. fxe5 {[%clk 0:00:01.7]}
44... Nxe5 {[%clk 0:00:11.2]} 45. Bd4 {[%clk 0:00:02.3]} 45... Ng4+ {[%clk
0:00:11.8]} 46. Kg1 {[%clk 0:00:02.5]} 46... Bxd4+ {[%clk 0:00:09.6]} 47. Qxd4+
{[%clk 0:00:03.1]} 47... Kg8 {[%clk 0:00:10.3]} 48. Nd2 {[%clk 0:00:02.8]} 48...
Qe6 {[%clk 0:00:07.7]} 49. Nc4 {[%clk 0:00:02.9]} 49... Nf6 {[%clk 0:00:06.2]}
50. Nd6 {[%clk 0:00:02.6]} 50... Kf8 {[%clk 0:00:06.9]} 51. e5 {[%clk
0:00:01.9]} 51... Nd7 {[%clk 0:00:07.5]} 52. Nc4 {[%clk 0:00:01.5]} 52... Qc6
{[%clk 0:00:06]} 53. Qd6+ {[%clk 0:00:02]} 53... Qxd6 {[%clk 0:00:06.6]} 54.
cxd6 {[%clk 0:00:02.9]} 54... b5 {[%clk 0:00:05.3]} 55. Na3 {[%clk 0:00:02.7]}
55... a6 {[%clk 0:00:05.1]} 56. Nc2 {[%clk 0:00:03.4]} 56... Nxe5 {[%clk
0:00:05]} 57. Nb4 {[%clk 0:00:03.8]} 57... a5 {[%clk 0:00:04.7]} 58. Nd5 {[%clk
0:00:03.3]} 58... b4 {[%clk 0:00:04.6]} 59. Nb6 {[%clk 0:00:01.7]} 59... Ke8
{[%clk 0:00:03.4]} 60. Kf2 {[%clk 0:00:01.7]} 60... Kd8 {[%clk 0:00:02.7]} 61.
g4 {[%clk 0:00:01.5]} 61... Nxg4+ {[%clk 0:00:02.6]} 62. Kg3 {[%clk 0:00:02.1]}
62... Ne5 {[%clk 0:00:02.9]} 63. Kxh3 {[%clk 0:00:02.5]} 63... g5 {[%clk
0:00:03.3]} 64. Kg3 {[%clk 0:00:02.9]} 64... f5 {[%clk 0:00:03.9]} 65. h4 {[%clk
0:00:02.9]} 65... f4+ {[%clk 0:00:04.6]} 66. Kh2 {[%clk 0:00:02.4]} 66... gxh4
{[%clk 0:00:04.3]} 67. Kh3 {[%clk 0:00:02.9]} 67... f3 {[%clk 0:00:04.8]} 68.
Na4 {[%clk 0:00:01.4]} 68... Kd7 {[%clk 0:00:04.6]} 69. Nc5+ {[%clk 0:00:01.5]}
69... Kc6 {[%clk 0:00:04.7]} 70. Nb7 {[%clk 0:00:02.4]} 70... Kxb7 {[%clk
0:00:04.7]} 0-1